lending/lending_fUSD_20241005
["ID","MTS","AMOUNT","RATE_DAILY","PERIOD"]
[339867558,1728094259889,-150.0,0.00039777,7]
[339867559,1728094259898,-238.27330472,0.00039778,7]
[339867560,1728094259908,-150.0,0.00039798,7]
[339867561,1728094259917,-1700.0,0.000398,14]
[339867562,1728094259927,-238.27330472,0.00039808,7]
[339867563,1728094259936,-150.0,0.00039814,120]
[339867564,1728094259945,-150.0,0.00039821,7]
[339867565,1728094259954,-150.0,0.00039826,7]
[339867566,1728094259964,-856.75,0.00039834,120]
[339867567,1728094259974,-500.0,0.00039834,120]
[339867568,1728094259983,-511.35539946,0.00039834,120]
[339867569,1728094259993,-500.0,0.00039834,120]
[339867570,1728094260002,-500.0,0.00039835,120]
[339867571,1728094260013,-500.0,0.00039835,120]
[339867572,1728094260023,-731.5,0.00039835,120]
[339867573,1728094260032,-500.0,0.00039835,120]
[339867574,1728094260042,-500.0,0.00039835,120]
[339867575,1728094260052,-500.0,0.00039835,120]
[339867576,1728094260062,-238.27330472,0.00039839,7]
[339867577,1728094260072,-150.0,0.00039847,7]
[339867578,1728094260081,-150.0,0.00039867,7]
[339867579,1728094260091,-238.27330472,0.00039869,7]
[339867580,1728094260100,-150.0,0.00039876,7]
[339867581,1728094260110,-238.27330472,0.000399,7]
[339867582,1728094260119,-4000.0,0.000399,120]
[339867583,1728094260128,-799.0,0.000399,5]
[339867584,1728094260138,-799.0,0.000399,5]
[339867585,1728094260147,-300.0,0.000399,14]
[339867586,1728094260158,-500.0,0.00039912,120]
[339867587,1728094260168,-500.0,0.00039912,120]
[339867588,1728094260178,-500.0,0.00039912,120]
[339867589,1728094260188,-500.0,0.00039912,120]
[339867590,1728094260197,-1453.12,0.00039912,120]
[339867591,1728094260206,-521.73,0.00039912,120]
[339867592,1728094260216,-638.8,0.00039912,120]
[339867593,1728094260226,-500.0,0.00039912,120]
[339867594,1728094260236,-596.41202323,0.00039912,120]
[339867595,1728094260245,-721.35,0.00039912,120]
[339867596,1728094260254,-537.24,0.00039912,120]
[339867597,1728094260264,-816.06,0.00039912,120]
[339867598,1728094260273,-1170.45,0.00039912,120]
[339867599,1728094260283,-500.0,0.00039912,120]
[339867600,1728094260293,-500.0,0.00039912,120]
[339867601,1728094260302,-150.0,0.00039912,120]
[339867602,1728094260312,-317.58280808,0.00039912,120]
[339867603,1728094260322,-569.94,0.00039912,120]
[339867604,1728094260331,-500.0,0.00039912,24]
[339867605,1728094260340,-500.0,0.00039912,120]
[339867606,1728094260350,-953.05,0.00039912,120]
[339867607,1728094260360,-1035.66,0.00039912,120]
[339867608,1728094260369,-500.0,0.00039912,120]
[339867609,1728094260378,-500.0,0.00039912,120]
[339867610,1728094260387,-1507.64,0.00039912,120]
[339867611,1728094260396,-500.0,0.00039912,120]
[339867612,1728094260406,-500.0,0.00039912,120]
[339867613,1728094260415,-604.80077704,0.00039912,120]
[339867614,1728094260424,-875.69,0.00039912,120]
[339867615,1728094260433,-500.0,0.00039912,120]
[339867616,1728094260443,-1180.55,0.00039912,120]
[339867617,1728094260452,-150.0,0.00039914,7]
[339867618,1728094260462,-150.0,0.00039914,7]
[339867619,1728094260471,-150.0,0.00039925,7]
[339867620,1728094260481,-238.27330472,0.0003993,7]
[339867621,1728094260490,-2110.0,0.00039953,2]
[339867622,1728094260499,-150.0,0.0003996,7]
[339867623,1728094260509,-238.27330472,0.0003996,7]
[339867624,1728094260518,-300.0,0.00039972,30]
[339867625,1728094260528,-300.0,0.00039972,30]
[339867626,1728094260538,-300.0,0.00039972,30]
[339867627,1728094260547,-300.0,0.00039972,30]
[339867628,1728094260557,-300.0,0.00039972,30]
[339867629,1728094260566,-300.0,0.00039972,30]
[339867630,1728094260576,-300.0,0.00039972,30]
[339867631,1728094260586,-300.0,0.00039972,30]
[339867632,1728094260596,-300.0,0.00039972,30]
[339867633,1728094260605,-2450.4843064,0.00039973,2]
[339867634,1728094260615,-2009.6037551,0.00039973,2]
[339867635,1728094260624,-937.8452076,0.00039973,2]
[339867636,1728094260633,-765.0993679,0.00039973,2]
[339867637,1728094260643,-2921.5546098,0.00039973,2]
[339867638,1728094260651,-2383.4205976,0.00039973,2]
[339867639,1728094260661,-10008.2920075,0.00039973,2]
[339867640,1728094260670,-8164.8206188,0.00039973,2]
[339867641,1728094260679,-893.3183759,0.00039973,2]
[339867642,1728094260689,-728.7741294,0.00039973,2]
[339867643,1728094260702,-1106.129351,0.00039973,2]
[339867644,1728094260712,-902.3865136,0.00039973,2]
[339867645,1728094260721,-13422.2597291,0.00039973,2]
[339867646,1728094260731,-10949.9545881,0.00039973,2]
[339867647,1728094260742,-150.0,0.00039974,7]
[339867648,1728094260752,-300.0,0.00039979,30]
[339867649,1728094260761,-300.0,0.00039979,30]
[339867650,1728094260771,-300.0,0.00039979,30]
[339867651,1728094260781,-300.0,0.00039979,30]
[339867652,1728094260791,-300.0,0.00039979,30]
[339867653,1728094260801,-300.0,0.00039979,30]
[339867654,1728094260810,-300.0,0.00039979,30]
[339867655,1728094260819,-300.0,0.00039979,30]
[339867656,1728094260829,-300.0,0.00039979,30]
[339867657,1728094260838,-50193.8677369,0.0003998,30]
[339867658,1728094260848,-500.0,0.00039983,120]
[339867659,1728094260858,-660.99,0.00039983,120]
[339867660,1728094260867,-1218.65,0.00039983,120]
[339867661,1728094260876,-500.0,0.00039983,120]
[339867662,1728094260886,-586.53,0.00039983,120]
[339867663,1728094260895,-500.0,0.00039983,120]
[339867664,1728094260905,-500.0,0.00039983,120]
[339867665,1728094260914,-612.34,0.00039983,120]
[339867666,1728094260924,-753.54,0.00039983,120]
[339867667,1728094260934,-500.0,0.00039983,120]
[339867668,1728094260943,-664.83,0.00039983,120]
[339867669,1728094260953,-500.0,0.00039983,120]
[339867670,1728094260963,-913.92,0.00039983,120]
[339867671,1728094260973,-500.0,0.00039983,120]
[339867672,1728094260982,-500.0,0.00039983,120]
[339867673,1728094260992,-282.32071286,0.00039983,120]
[339867674,1728094261001,-610.6,0.00039983,120]
[339867675,1728094261011,-151.0,0.00039983,14]
[339867676,1728094261021,-218.38934,0.00039983,14]
[339867677,1728094261030,-151.0,0.00039983,14]
[339867678,1728094261039,-151.0,0.00039983,14]
[339867679,1728094261049,-500.0,0.00039983,120]
[339867680,1728094261058,-151.0,0.00039983,14]
[339867681,1728094261068,-265.420204,0.00039983,14]
[339867682,1728094261077,-151.0,0.00039983,14]
[339867683,1728094261086,-540.0,0.00039983,120]
[339867684,1728094261096,-238.27330472,0.00039991,7]
[339867685,1728094261105,-150.0,0.00039991,7]
[339867686,1728094261116,-229.31001728,0.00039996,90]
[339867687,1728094261125,-150.0,0.00039996,90]
[339867688,1728094261135,-151.0,0.00039997,7]
[339867689,1728094261261,-182.372402,0.00039997,14]
[339867690,1728094261272,-182.372402,0.00039997,14]
[339867691,1728094261286,-151.0,0.00039997,14]
[339867692,1728094261295,-151.0,0.00039997,14]
[339867693,1728094261304,-151.0,0.00039997,14]
[339867694,1728094261313,-151.0,0.00039997,14]
[339867695,1728094261322,-151.0,0.00039997,14]
[339867696,1728094261331,-205.227819,0.00039997,14]
[339867697,1728094261340,-151.0,0.00039997,14]
[339867698,1728094261349,-151.0,0.00039997,14]
[339867699,1728094261359,-151.0,0.00039997,14]
[339867700,1728094261368,-152.1317,0.00039997,7]
[339867701,1728094261378,-151.0,0.00039997,14]
[339867702,1728094261387,-152.1317,0.00039997,7]
[339867703,1728094261398,-151.0,0.00039997,14]
[339867704,1728094261408,-238.496648,0.00039997,14]
[339867705,1728094261418,-151.0,0.00039997,14]
[339867706,1728094261428,-151.0,0.00039997,14]
[339867707,1728094261439,-151.0,0.00039997,14]
[339867708,1728094261450,-151.0,0.00039997,14]
[339867709,1728094261461,-151.0,0.00039997,14]
[339867710,1728094261470,-151.0,0.00039997,14]
[339867711,1728094261480,-189.078094,0.00039997,14]
[339867712,1728094261489,-151.0,0.00039997,14]
[339867713,1728094261498,-151.0,0.00039997,14]
[339867714,1728094261507,-151.0,0.00039997,14]
[339867715,1728094261517,-618.740063,0.00039997,14]
[339867716,1728094261526,-618.740063,0.00039997,14]
[339867717,1728094261535,-151.0,0.00039997,14]
[339867718,1728094261545,-305.623152,0.00039997,14]
[339867719,1728094261554,-305.623152,0.00039997,14]
[339867720,1728094261563,-1076.319676,0.00039997,14]
[339867721,1728094261573,-298.470644,0.00039997,14]
[339867722,1728094261582,-298.470644,0.00039997,14]
[339867723,1728094261591,-151.0,0.00039997,14]
[339867724,1728094261600,-151.0,0.00039997,14]
[339867725,1728094261610,-151.0,0.00039997,14]
[339867726,1728094261619,-151.0,0.00039997,14]
[339867727,1728094261628,-11991.5960355,0.00039997,2]
[339867728,1728094261637,-477.67286983,0.00039999,31]
[339867729,1728094261647,-50000.0,0.0004,30]
[339867730,1728094261656,-50000.0,0.0004,40]
[339867731,1728094261665,-4836.01207557,0.0004,15]
[339867732,1728094261674,-1000000.0,0.0004,120]
[339867733,1728094261683,-899.99999999,0.0004,120]
[339867734,1728094261693,-26259.14591686,0.0004,60]
[339867735,1728094261704,-1911.21,0.0004,120]
[339867736,1728094261713,-200.0,0.0004,120]
[339867737,1728094261722,-1662.58750769,0.0004,120]
[339867738,1728094261731,-21969.75500006,0.0004,120]
[339867739,1728094261740,-346.71,0.0004,2]
[339867740,1728094261749,-500000.0,0.0004,120]
[339867741,1728094261759,-500.0,0.0004,120]
[339867742,1728094261770,-4879.0,0.0004,30]
[339867743,1728094261781,-10000.0,0.0004,20]
[339867744,1728094261790,-3034.93341851,0.0004,120]
[339867745,1728094261799,-341.98,0.0004,120]
[339867746,1728094261808,-151.0,0.0004,14]
[339867747,1728094261817,-151.0,0.0004,14]
[339867748,1728094261826,-151.0,0.0004,14]
[339867749,1728094261836,-151.0,0.0004,14]
[339867750,1728094261845,-151.0,0.0004,14]
[339867751,1728094261854,-151.0,0.0004,14]
[339867752,1728094261863,-151.0,0.0004,14]
[339867753,1728094261872,-151.0,0.0004,14]
[339867754,1728094261881,-294.465063,0.0004,14]
[339867755,1728094261891,-151.0,0.0004,14]
[339867756,1728094261900,-151.868053,0.0004,14]
[339867757,1728094261909,-151.0,0.0004,14]
[339867758,1728094261918,-153.475796,0.0004,14]
[339867759,1728094261928,-151.0,0.0004,14]
[339867760,1728094261937,-151.0,0.0004,14]
[339867761,1728094261947,-253.912726,0.0004,14]
[339867762,1728094261956,-169.309547,0.0004,14]
[339867763,1728094261965,-169.309547,0.0004,14]
[339867764,1728094261974,-169.309547,0.0004,14]
[339867765,1728094261984,-151.0,0.0004,14]
[339867766,1728094261993,-151.427309,0.0004,14]
[339867767,1728094262003,-169.309547,0.0004,14]
[339867768,1728094262015,-169.309547,0.0004,14]
[339867769,1728094262025,-169.309547,0.0004,14]
[339867770,1728094262034,-445.22724,0.0004,14]
[339867771,1728094262044,-445.22724,0.0004,14]
[339867772,1728094262054,-445.22724,0.0004,14]
[339867773,1728094262064,-445.22724,0.0004,14]
[339867774,1728094262075,-445.22724,0.0004,14]
[339867775,1728094262084,-445.22724,0.0004,14]
[339867776,1728094262093,-151.0,0.0004,14]
[339867777,1728094262102,-151.0,0.0004,14]
[339867778,1728094262111,-151.0,0.0004,14]
[339867779,1728094262121,-153.013747,0.0004,14]
[339867780,1728094262130,-151.0,0.0004,14]
[339867781,1728094262140,-151.0,0.0004,14]
[339867782,1728094262149,-151.0,0.0004,14]
[339867783,1728094262158,-151.0,0.0004,7]
[339867784,1728094262168,-166.80806133,0.0004,7]
[339867785,1728094262177,-182.372402,0.0004,14]
[339867786,1728094262187,-182.372402,0.0004,14]
[339867787,1728094262196,-182.372402,0.0004,14]
[339867788,1728094262205,-182.372402,0.0004,14]
[339867789,1728094262215,-151.0,0.0004,14]
[339867790,1728094262224,-151.0,0.0004,14]
[339867791,1728094262233,-281.958732,0.0004,14]
[339867792,1728094262242,-151.0,0.0004,14]
[339867793,1728094262251,-151.0,0.0004,14]
[339867794,1728094262260,-151.0,0.0004,14]
[339867795,1728094262270,-151.0,0.0004,14]
[339867796,1728094262279,-155.866963,0.0004,14]
[339867797,1728094262288,-151.0,0.0004,14]
[339867798,1728094262297,-151.0,0.0004,14]
[339867799,1728094262307,-289.91849,0.0004,14]
[339867800,1728094262316,-151.0,0.0004,14]
[339867801,1728094262325,-151.0,0.0004,14]
[339867802,1728094262335,-983.21,0.0004,120]
[339867803,1728094262344,-152.1317,0.0004,7]
[339867804,1728094262353,-152.1317,0.0004,7]
[339867805,1728094262362,-151.0,0.0004,14]
[339867806,1728094262371,-151.0,0.0004,14]
[339867807,1728094262380,-152.1317,0.0004,7]
[339867808,1728094262389,-152.1317,0.0004,7]
[339867809,1728094262398,-152.515714,0.0004,14]
[339867810,1728094262407,-151.0,0.0004,14]
[339867811,1728094262418,-151.0,0.0004,14]
[339867812,1728094262427,-151.0,0.0004,14]
[339867813,1728094262436,-151.0,0.0004,14]
[339867814,1728094262445,-151.0,0.0004,14]
[339867815,1728094262454,-299.031373,0.0004,14]
[339867816,1728094262464,-151.0,0.0004,14]
[339867817,1728094262473,-151.0,0.0004,14]
[339867818,1728094262482,-151.0,0.0004,14]
[339867819,1728094262491,-153.110481,0.0004,14]
[339867820,1728094262499,-151.0,0.0004,14]
[339867821,1728094262508,-151.0,0.0004,14]
[339867822,1728094262518,-151.0,0.0004,14]
[339867823,1728094262527,-151.0,0.0004,14]
[339867824,1728094262536,-151.0,0.0004,14]
[339867825,1728094262545,-151.0,0.0004,14]
[339867826,1728094262554,-301.993698,0.0004,14]
[339867827,1728094262563,-618.740063,0.0004,14]
[339867828,1728094262572,-618.740063,0.0004,14]
[339867829,1728094262581,-618.740063,0.0004,14]
[339867830,1728094262590,-618.740063,0.0004,14]
[339867831,1728094262599,-151.0,0.0004,14]
[339867832,1728094262608,-151.0,0.0004,14]
[339867833,1728094262617,-305.623152,0.0004,14]
[339867834,1728094262627,-305.623152,0.0004,14]
[339867835,1728094262635,-305.623152,0.0004,14]
[339867836,1728094262645,-305.623152,0.0004,14]
[339867837,1728094262655,-1076.319676,0.0004,14]
[339867838,1728094262664,-1076.319676,0.0004,14]
[339867839,1728094262673,-298.470644,0.0004,14]
[339867840,1728094262682,-298.470644,0.0004,14]
[339867841,1728094262691,-298.470644,0.0004,14]
[339867842,1728094262704,-298.470644,0.0004,14]
[339867843,1728094262713,-151.0,0.0004,14]
[339867844,1728094262722,-151.0,0.0004,14]
[339867845,1728094262731,-151.0,0.0004,14]
[339867846,1728094262740,-151.0,0.0004,14]
[339867847,1728094262750,-151.0,0.0004,14]
[339867848,1728094262759,-151.0,0.0004,14]
[339867849,1728094262770,-151.0,0.0004,14]
[339867850,1728094262779,-298.535382,0.0004,14]
[339867851,1728094262789,-151.0,0.0004,14]
[339867852,1728094262799,-151.0,0.0004,14]
[339867853,1728094262810,-153.185109,0.0004,14]
[339867854,1728094262819,-151.0,0.0004,14]
[339867855,1728094262829,-157.884032,0.0004,14]
[339867856,1728094262839,-151.0,0.0004,14]
[339867857,1728094262848,-225.403218,0.0004,14]
[339867858,1728094262858,-173.369181,0.0004,14]
[339867859,1728094262867,-1216.07983626,0.0004,120]
[339867860,1728094262876,-150.0,0.00040006,7]
[339867861,1728094262885,-500.0,0.00040013,120]
[339867862,1728094262895,-500.0,0.00040013,120]
[339867863,1728094262905,-500.0,0.00040013,120]
[339867864,1728094262914,-1013.96,0.00040013,120]
[339867865,1728094262923,-500.0,0.00040013,120]
[339867866,1728094262932,-238.27330472,0.00040021,7]
[339867867,1728094262941,-150.0,0.00040024,7]
[339867868,1728094262951,-150.0,0.0004003,7]
[339867869,1728094262960,-238.27330472,0.00040052,7]
[339867870,1728094262970,-150.0,0.00040053,7]
[339867871,1728094262979,-150.0,0.00040073,7]
[339867872,1728094262989,-238.27330472,0.00040082,7]
[339867873,1728094262998,-150.0,0.00040099,7]
[339867874,1728094263008,-6600.0,0.000401,120]
[339867875,1728094263017,-856.75,0.00040108,120]
[339867876,1728094263027,-500.0,0.00040108,120]
[339867877,1728094263036,-500.0,0.00040109,120]
[339867878,1728094263046,-500.0,0.00040109,120]
[339867879,1728094263055,-731.5,0.00040109,120]
[339867880,1728094263065,-175.47891568,0.00040109,120]
[339867881,1728094263074,-500.0,0.00040109,120]
[339867882,1728094263083,-500.0,0.00040109,120]
[339867883,1728094263092,-238.27330472,0.00040113,7]
[339867884,1728094263102,-150.0,0.00040123,7]
[339867885,1728094263112,-150.0,0.00040134,7]
[339867886,1728094263122,-238.27330472,0.00040143,7]
[339867887,1728094263132,-150.0,0.00040145,7]
[339867888,1728094263141,-150.0,0.00040145,7]
[339867889,1728094263151,-157.10051,0.00040148,120]
[339867890,1728094263160,-150.0,0.00040172,7]
[339867891,1728094263169,-238.27330472,0.00040174,7]
[339867892,1728094263179,-500.0,0.00040186,120]
[339867893,1728094263189,-500.0,0.00040186,120]
[339867894,1728094263198,-500.0,0.00040186,120]
[339867895,1728094263208,-500.0,0.00040186,120]
[339867896,1728094263217,-1453.12,0.00040186,120]
[339867897,1728094263227,-521.73,0.00040186,120]
[339867898,1728094263236,-638.8,0.00040186,120]
[339867899,1728094263246,-500.0,0.00040186,120]
[339867900,1728094263256,-721.35,0.00040186,120]
[339867901,1728094263265,-537.24,0.00040186,120]
[339867902,1728094263274,-816.06,0.00040186,120]
[339867903,1728094263284,-1170.45,0.00040186,120]
[339867904,1728094263293,-500.0,0.00040186,120]
[339867905,1728094263302,-500.0,0.00040186,120]
[339867906,1728094263311,-150.0,0.00040186,120]
[339867907,1728094263321,-569.94,0.00040186,120]
[339867908,1728094263330,-500.0,0.00040186,24]
[339867909,1728094263339,-511.37904946,0.00040186,120]
[339867910,1728094263349,-953.05,0.00040186,120]
[339867911,1728094263359,-1035.66,0.00040186,120]
[339867912,1728094263368,-500.0,0.00040186,120]
[339867913,1728094263377,-500.0,0.00040186,120]
[339867914,1728094263387,-1507.64,0.00040186,120]
[339867915,1728094263396,-500.0,0.00040186,120]
[339867916,1728094263406,-500.0,0.00040186,120]
[339867917,1728094263415,-875.69,0.00040186,120]
[339867918,1728094263424,-500.0,0.00040186,120]
[339867919,1728094263434,-1180.55,0.00040186,120]
[339867920,1728094263443,-215.0,0.0004019,2]
[339867921,1728094263453,-214.0,0.0004019,2]
[339867922,1728094263462,-214.0,0.0004019,2]
[339867923,1728094263471,-201.0,0.0004019,2]
[339867924,1728094263481,-214.0,0.0004019,2]
[339867925,1728094263490,-201.0,0.0004019,2]
[339867926,1728094263499,-266.0,0.0004019,30]
[339867927,1728094263508,-150.0,0.00040192,7]
[339867928,1728094263518,-212.0,0.000402,30]
[339867929,1728094263527,-238.27330472,0.00040204,7]
[339867930,1728094263537,-150.0,0.00040221,7]
[339867931,1728094263547,-238.27330472,0.00040234,7]
[339867932,1728094263556,-150.0,0.00040238,7]
[339867933,1728094263565,-500.0,0.00040257,120]
[339867934,1728094263575,-660.99,0.00040257,120]
[339867935,1728094263584,-1218.65,0.00040257,120]
[339867936,1728094263593,-500.0,0.00040257,120]
[339867937,1728094263603,-586.53,0.00040257,120]
[339867938,1728094263612,-519.85390087,0.00040257,120]
[339867939,1728094263621,-342.35694373,0.00040257,120]
[339867940,1728094263630,-612.34,0.00040257,120]
[339867941,1728094263640,-753.54,0.00040257,120]
[339867942,1728094263649,-500.0,0.00040257,120]
[339867943,1728094263658,-664.83,0.00040257,120]
[339867944,1728094263667,-500.0,0.00040257,120]
[339867945,1728094263677,-913.92,0.00040257,120]
[339867946,1728094263686,-500.0,0.00040257,120]
[339867947,1728094263699,-500.0,0.00040257,120]
[339867948,1728094263708,-610.6,0.00040257,120]
[339867949,1728094263718,-500.0,0.00040257,120]
[339867950,1728094263727,-540.0,0.00040257,120]
[339867951,1728094263737,-150.0,0.00040261,7]
[339867952,1728094263746,-238.27330472,0.00040265,7]
[339867953,1728094263755,-150.0,0.00040271,7]
[339867954,1728094263764,-1911.21,0.00040273,120]
[339867955,1728094263774,-150.0,0.00040278,7]
[339867956,1728094263783,-150.0,0.00040285,7]
[339867957,1728094263793,-500.0,0.00040287,120]
[339867958,1728094263802,-500.0,0.00040287,120]
[339867959,1728094263811,-500.0,0.00040287,120]
[339867960,1728094263820,-1013.96,0.00040287,120]
[339867961,1728094263830,-500.0,0.00040287,120]
[339867962,1728094263839,-238.27330472,0.00040295,7]
[339867963,1728094263848,-150.0,0.0004032,7]
[339867964,1728094263858,-238.27330472,0.00040326,7]
[339867965,1728094263867,-150.0,0.00040331,7]
[339867966,1728094263877,-238.27330472,0.00040356,7]
[339867967,1728094263886,-150.0,0.0004037,7]
[339867968,1728094263895,-150.0,0.00040377,7]
[339867969,1728094263904,-150.0,0.00040377,7]
[339867970,1728094263914,-856.75,0.00040382,120]
[339867971,1728094263923,-500.0,0.00040382,120]
[339867972,1728094263932,-500.0,0.00040383,120]
[339867973,1728094263942,-500.0,0.00040383,120]
[339867974,1728094263951,-731.5,0.00040383,120]
[339867975,1728094263960,-500.0,0.00040383,120]
[339867976,1728094263969,-500.0,0.00040383,120]
[339867977,1728094263979,-238.27330472,0.00040387,7]
[339867978,1728094263988,-310.62064469,0.00040399,14]
[339867979,1728094263997,-238.27330472,0.00040417,7]
[339867980,1728094264008,-150.0,0.00040419,7]
[339867981,1728094264018,-150.0,0.00040421,7]
[339867982,1728094264028,-150.0,0.00040424,7]
[339867983,1728094264038,-500.0,0.00040431,120]
[339867984,1728094264047,-238.27330472,0.00040447,7]
[339867985,1728094264057,-157.10051,0.00040448,120]
[339867986,1728094264066,-1429.29,0.00040453,2]
[339867987,1728094264076,-500.0,0.0004046,120]
[339867988,1728094264202,-500.0,0.0004046,120]
[339867989,1728094264212,-513.23196513,0.0004046,120]
[339867990,1728094264222,-500.0,0.0004046,120]
[339867991,1728094264232,-1453.12,0.0004046,120]
[339867992,1728094264242,-521.73,0.0004046,120]
[339867993,1728094264252,-638.8,0.0004046,120]
[339867994,1728094264261,-500.0,0.0004046,120]
[339867995,1728094264271,-721.35,0.0004046,120]
[339867996,1728094264281,-537.24,0.0004046,120]
[339867997,1728094264290,-816.06,0.0004046,120]
[339867998,1728094264299,-1170.45,0.0004046,120]
[339867999,1728094264309,-500.0,0.0004046,120]
[339868000,1728094264319,-500.0,0.0004046,120]
[339868001,1728094264328,-150.0,0.0004046,120]
[339868002,1728094264339,-569.94,0.0004046,120]
[339868003,1728094264349,-500.0,0.0004046,24]
[339868004,1728094264358,-953.05,0.0004046,120]
[339868005,1728094264368,-1035.66,0.0004046,120]
[339868006,1728094264378,-500.0,0.0004046,120]
[339868007,1728094264388,-500.0,0.0004046,120]
[339868008,1728094264398,-1507.64,0.0004046,120]
[339868009,1728094264407,-500.0,0.0004046,120]
[339868010,1728094264416,-500.0,0.0004046,120]
[339868011,1728094264425,-875.69,0.0004046,120]
[339868012,1728094264435,-500.0,0.0004046,120]
[339868013,1728094264444,-1180.55,0.0004046,120]
[339868014,1728094264453,-150.0,0.00040468,7]
[339868015,1728094264462,-150.0,0.0004047,7]
[339868016,1728094264472,-238.27330472,0.00040478,7]
[339868017,1728094264481,-150.0,0.00040493,7]
[339868018,1728094264490,-150.0,0.00040493,7]
[339868019,1728094264499,-500000.0,0.000405,120]
[339868020,1728094264509,-151.0,0.000405,14]
[339868021,1728094264518,-151.0,0.000405,14]
[339868022,1728094264528,-151.0,0.000405,14]
[339868023,1728094264540,-264.372946,0.000405,14]
[339868024,1728094264550,-169.309547,0.000405,14]
[339868025,1728094264559,-169.309547,0.000405,14]
[339868026,1728094264568,-169.309547,0.000405,14]
[339868027,1728094264578,-169.309547,0.000405,14]
[339868028,1728094264587,-445.22724,0.000405,14]
[339868029,1728094264596,-445.22724,0.000405,14]
[339868030,1728094264606,-445.22724,0.000405,14]
[339868031,1728094264615,-445.22724,0.000405,14]
[339868032,1728094264625,-151.0,0.000405,14]
[339868033,1728094264635,-167.986436,0.000405,14]
[339868034,1728094264644,-182.372402,0.000405,14]
[339868035,1728094264654,-182.372402,0.000405,14]
[339868036,1728094264663,-182.372402,0.000405,14]
[339868037,1728094264672,-182.372402,0.000405,14]
[339868038,1728094264682,-151.0,0.000405,14]
[339868039,1728094264692,-151.0,0.000405,14]
[339868040,1728094264705,-151.0,0.000405,14]
[339868041,1728094264715,-151.0,0.000405,14]
[339868042,1728094264725,-151.0,0.000405,14]
[339868043,1728094264735,-151.491647,0.000405,14]
[339868044,1728094264746,-151.0,0.000405,14]
[339868045,1728094264756,-151.0,0.000405,14]
[339868046,1728094264765,-151.0,0.000405,14]
[339868047,1728094264776,-151.0,0.000405,14]
[339868048,1728094264787,-152.1317,0.000405,7]
[339868049,1728094264796,-152.1317,0.000405,7]
[339868050,1728094264806,-152.1317,0.000405,7]
[339868051,1728094264816,-152.1317,0.000405,7]
[339868052,1728094264824,-151.0,0.000405,14]
[339868053,1728094264835,-151.0,0.000405,14]
[339868054,1728094264845,-151.0,0.000405,14]
[339868055,1728094264855,-164.392605,0.000405,14]
[339868056,1728094264865,-151.0,0.000405,14]
[339868057,1728094264875,-254.402755,0.000405,14]